{"text_format":"1","workbook":"xlsx","n_sheets":9,"sheets":["OH-sumarizace","Výsledky dle Metodiky ","Výsledky nehodnocené metodikou","Kv. růst, pedag., organizace","Kladné ohlasy, uznání komunitou","Projekty - hlavní řešitel","Projekty - spoluřešitel","Ostatní aktivity, třetí role","List1"],"not_rendered":{"charts":0,"images":0,"macros":1,"external_links":0,"defined_names":8,"comments":6,"pivot_tables":0},"unopened":[],"bounds":{"document_bytes":16777216,"sheet_cells":100000,"rows_first":2000,"rows_last":500,"rows_between":2000,"halvings":0,"cell_chars":16384,"cell_head_chars":4096},"cells_cut":0,"cells_raw":0,"read":"whole","date_system":"1900"}

{"sheet":"OH-sumarizace","index":0,"n_rows":67,"n_cols":3,"rows_kept":67,"cut":false,"hidden":false,"merged":[[44,0,44,1],[40,0,40,1],[34,0,34,1],[35,0,35,1],[36,0,36,1],[37,0,37,1],[38,0,38,1],[39,0,39,1],[18,0,18,1],[19,0,19,1],[20,0,20,1],[33,0,33,1],[22,0,22,1],[23,0,23,1],[24,0,24,1],[25,0,25,1],[27,0,27,1],[28,0,28,1],[29,0,29,1],[30,0,30,1],[31,0,31,1],[32,0,32,1],[13,0,13,1],[14,0,14,1],[11,0,11,1],[16,0,16,1],[17,0,17,1],[0,0,0,2],[1,1,1,2],[3,0,3,1],[5,0,5,1],[6,0,6,1],[7,0,7,1],[55,0,55,1],[47,0,47,1],[48,0,48,1],[49,0,49,1],[50,0,50,1],[51,0,51,1],[52,0,52,1],[42,0,42,1],[43,0,43,1],[45,0,45,1],[21,0,21,1],[8,0,8,1],[9,0,9,1],[10,0,10,1],[12,0,12,1],[60,0,60,1],[46,0,46,1],[57,0,57,1],[58,0,58,1],[62,0,62,1],[53,0,53,1],[54,0,54,1]]}
["Výkaz tvůrčích a ostatních aktivit za rok 2018"]
["Jméno:","Ústav: "]
[]
["Typ aktivity",null,"Počet ZH za danou aktivitu"]
[]
[{"$f":"'Výsledky dle Metodiky '!A1:D1","v":"1. Výsledky tvůrčích činností dle Metodiky pro hodnocení výzkumu a vývoje"},null,{"$f":"'Výsledky dle Metodiky '!D57","v":0}]
[{"$f":"'Výsledky dle Metodiky '!A2","v":"Jimp - Články v impaktovaných časopisech  - časopis uvedený v databázi Web of Science (500 - 15250 ZH)"},null,{"$f":"'Výsledky dle Metodiky '!D6","v":0}]
[{"$f":"'Výsledky dle Metodiky '!A8","v":"Jsc - Články v časopisech uvedené v databázi SCOPUS            (500 - 15250 ZH)"},null,{"$f":"'Výsledky dle Metodiky '!D14","v":0}]
[{"$f":"'Výsledky dle Metodiky '!A16","v":"B Odborná kniha - světový jazyk\nC kapitola v odborné knize - světový jazyk    (400 ZH/AA)"},null,{"$f":"'Výsledky dle Metodiky '!D20","v":0}]
[{"$f":"'Výsledky dle Metodiky '!A22","v":"B Odborná kniha - ostatní jazyky\nC kapitola v odborné knize - ostatní jazyky     (200 ZH/ AA)"},null,{"$f":"'Výsledky dle Metodiky '!D26","v":0}]
[{"$f":"'Výsledky dle Metodiky '!A28","v":"D Článek ve sborníku - evidován v databázi SCOPUS a je mu přiřazena nenulová hodnota indexu SJR\n(500 ZH)"},null,{"$f":"'Výsledky dle Metodiky '!D33","v":0}]
[{"$f":"'Výsledky dle Metodiky '!A35","v":"D Článek ve sborníku - evidován v databázi ISI Proceedings společnosti Thomson Reuters nebo v databázi SCOPUS bez přidělené hodnoty SJR indexu\n(400 ZH)"},null,{"$f":"'Výsledky dle Metodiky '!D40","v":0}]
[{"$f":"'Výsledky dle Metodiky '!A42:B42","v":"P Patent - evropský nebo mezinárodní patent (EPO), patent USA (USPTO) a Japonska (5000 ZH)"},null,{"$f":"'Výsledky dle Metodiky '!D45","v":0}]
[{"$f":"'Výsledky dle Metodiky '!A47:B47","v":"P Patent - český nebo jiný národní patent, s výjimkou patentu USA a Japonska, který je využíván na základě platné licenční smlouvy (2500 ZH)"},null,{"$f":"'Výsledky dle Metodiky '!D50","v":0}]
[{"$f":"'Výsledky dle Metodiky '!A52:B52","v":"P Patent - ostaní: český nebo jiný národní patent udělený, doposud nevyužívaný nebo využívaný vlastníkem (500 ZH)"},null,{"$f":"'Výsledky dle Metodiky '!D55","v":0}]
[]
[{"$f":"'Výsledky nehodnocené metodikou'!A1:C1","v":"2. Tvůrčí činnosti nehodnocené podle metodiky"},null,{"$f":"'Výsledky nehodnocené metodikou'!C53","v":0}]
[{"$f":"'Výsledky nehodnocené metodikou'!A3","v":"Články ve vědeckých a odborných časopisech, které nejsou evidovány v databázi Web of Science ani SCOPUS – světový jazyk      (200 ZH)"},null,{"$f":"'Výsledky nehodnocené metodikou'!C7","v":0}]
[{"$f":"'Výsledky nehodnocené metodikou'!A9","v":"Články ve vědeckých a odborných časopisech, které jsou evidovány v \"Seznamu recenzovaných neimpaktovaných časopisů (periodik) vydávaných v České republice\"      (100 ZH)"},null,{"$f":"'Výsledky nehodnocené metodikou'!C13","v":0}]
[{"$f":"'Výsledky nehodnocené metodikou'!A15","v":"Články ve vědeckých a odborných časopisech, které nejsou evidovány v databázi Web of Science ani SCOPUS – ostatní jazyky      (50 ZH)"},null,{"$f":"'Výsledky nehodnocené metodikou'!C19","v":0}]
[{"$f":"'Výsledky nehodnocené metodikou'!A21","v":"Článek ve sborníku mezinárodní konference – neuvedené v databázi Web of Science ani SCOPUS – světový jazyk    (150 ZH)"},null,{"$f":"'Výsledky nehodnocené metodikou'!C25","v":0}]
[{"$f":"'Výsledky nehodnocené metodikou'!A27","v":"Článek ve sborníku mezinárodní konference – neuvedené v databázi Web of Science ani SCOPUS – ostatní jazyky    (30 ZH)"},null,{"$f":"'Výsledky nehodnocené metodikou'!C31","v":0}]
[{"$f":"'Výsledky nehodnocené metodikou'!A33","v":"Přednášky na odborných akcích, které nejsou doloženy sborníkem, ale pouze programem   (15 ZH)"},null,{"$f":"'Výsledky nehodnocené metodikou'!C36","v":0}]
[{"$f":"'Výsledky nehodnocené metodikou'!A38","v":"Poloprovoz, ověřená technologie (500 ZH)"},null,{"$f":"'Výsledky nehodnocené metodikou'!C41","v":0}]
[{"$f":"'Výsledky nehodnocené metodikou'!A43","v":"Software, funkční vzorek, užitný vzor, certifikovaná metodika. Výsledky, které vznikly v rámci aplikovaného výzkumu.  (100 ZH)"},null,{"$f":"'Výsledky nehodnocené metodikou'!C46","v":0}]
[{"$f":"'Výsledky nehodnocené metodikou'!A48","v":"Ostatní software, funkční vzorek, užitný vzor, certifikovaná metodika             (30 ZH)"},null,{"$f":"'Výsledky nehodnocené metodikou'!C51","v":0}]
[]
[{"$f":"'Kv. růst, pedag., organizace'!A1:D1","v":"3. Kvalifikační růst, pedagogická a organizační činnost"},null,{"$f":"'Kv. růst, pedag., organizace'!D62","v":0}]
[{"$f":"'Kv. růst, pedag., organizace'!A3:B3","v":"Bonifikace akademických pracovníkú studujících v 1.- 4. ročníku DSP, popřípadě v roce úspěšné obhajoby     (100 ZH)"},null,{"$f":"'Kv. růst, pedag., organizace'!D4","v":0}]
[{"$f":"'Kv. růst, pedag., organizace'!A6:B6","v":"Bonifikace školitele v roce úspěšného ukončení studia doktoranda studujícího na UTB     (100 ZH)"},null,{"$f":"'Kv. růst, pedag., organizace'!D9","v":0}]
[{"$f":"'Kv. růst, pedag., organizace'!A11:B11","v":"Jmenování profesorem - v roce jmenování   (500 ZH)"},null,{"$f":"'Kv. růst, pedag., organizace'!D12","v":0}]
[{"$f":"'Kv. růst, pedag., organizace'!A14","v":"Jmenování docentem - v roce jmenování   (350 ZH)"},null,{"$f":"'Kv. růst, pedag., organizace'!D15","v":0}]
[{"$f":"'Kv. růst, pedag., organizace'!A17","v":"Studijní opora – text, elektronická verze uvedená v databázi opor FAI    (50 ZH/autorský arch)"},null,{"$f":"'Kv. růst, pedag., organizace'!D20","v":0}]
[{"$f":"'Kv. růst, pedag., organizace'!A22:B22","v":"Studijní opora uvedená v databázi FAI - (prezentace, výukový software) \n(max 400 ZH/opora)"},null,{"$f":"'Kv. růst, pedag., organizace'!D25","v":0}]
[{"$f":"'Kv. růst, pedag., organizace'!A27:B27","v":" Zavedení nového předmětu   (200 ZH)"},null,{"$f":"'Kv. růst, pedag., organizace'!D30","v":0}]
[{"$f":"'Kv. růst, pedag., organizace'!A32:B32","v":" Vybudování laboratoře za podpory Rozvojových projektů UTB   (200 ZH)"},null,{"$f":"'Kv. růst, pedag., organizace'!D35","v":0}]
[{"$f":"'Kv. růst, pedag., organizace'!A37:B37","v":"Týdenní pedagogická činnost na zahraniční univerzitě v rámci projektů podporující mobility akademických pracovníků - Erasmus, Freemover…  (400 ZH)"},null,{"$f":"'Kv. růst, pedag., organizace'!D40","v":0}]
[{"$f":"'Kv. růst, pedag., organizace'!A42:B42","v":"Vedení studenta BSP a NMSP v soutěžích STOČ a umělecké činnosti \n(50 ZH / student)"},null,{"$f":"'Kv. růst, pedag., organizace'!D45","v":0}]
[{"$f":"'Kv. růst, pedag., organizace'!A47:B47","v":"Vedení stážisty se závěrečnou prací      (20 ZH / stážista)"},null,{"$f":"'Kv. růst, pedag., organizace'!D50","v":0}]
[{"$f":"'Kv. růst, pedag., organizace'!A52:B52","v":"Organizace a uspořádání kongresu, symposia, konference nebo workshopu      (max 400 ZH)"},null,{"$f":"'Kv. růst, pedag., organizace'!D55","v":0}]
[{"$f":"'Kv. růst, pedag., organizace'!A57:B57","v":"Organizace a uspořádání STOČ, olympiád, letních škol      (max 250 ZH)"},null,{"$f":"'Kv. růst, pedag., organizace'!D60","v":0}]
[]
[{"$f":"'Kladné ohlasy, uznání komunitou'!A1:C1","v":"4. Kladné ohlasy prací, uznání vědeckou komunitou"},null,{"$f":"'Kladné ohlasy, uznání komunitou'!C70","v":0}]
[{"$f":"'Kladné ohlasy, uznání komunitou'!A3:C3","v":"Citace díla autora v zahraničních časopisech a konferenčních příspěvcích dle databáze Web of Science a Scopus - publikace autorů mimo UTB           (20 ZH / citace)"},null,{"$f":"'Kladné ohlasy, uznání komunitou'!C6","v":0}]
[{"$f":"'Kladné ohlasy, uznání komunitou'!A8:C8","v":"Citace díla autora v zahraničních časopisech a konferenčních příspěvcích dle databáze Web of Science a Scopus - publikace autorů z UTB         (10 ZH / citace)"},null,{"$f":"'Kladné ohlasy, uznání komunitou'!C11","v":0}]
[{"$f":"'Kladné ohlasy, uznání komunitou'!A13","v":"Získaná významná ocenění v zahraničí     (450 ZH)"},null,{"$f":"'Kladné ohlasy, uznání komunitou'!C16","v":0}]
[{"$f":"'Kladné ohlasy, uznání komunitou'!A18","v":"Získaná významná ocenění v tuzemsku     (200 ZH)"},null,{"$f":"'Kladné ohlasy, uznání komunitou'!C21","v":0}]
[{"$f":"'Kladné ohlasy, uznání komunitou'!A23","v":"Oponentní posudek disertačních prací, habilitačních prací, monografií ve světovém jazyce    (50 ZH)"},null,{"$f":"'Kladné ohlasy, uznání komunitou'!C26","v":0}]
[{"$f":"'Kladné ohlasy, uznání komunitou'!A28","v":"Oponentní posudek disertačních prací, habilitačních prací, monografií v ostatních jazycích    (25 ZH)"},null,{"$f":"'Kladné ohlasy, uznání komunitou'!C31","v":0}]
[{"$f":"'Kladné ohlasy, uznání komunitou'!A33","v":"Recenzní posudek článků ve vědeckých a odborných časopisech, grantových přihlášek ve světovém jazyce   (25 ZH)"},null,{"$f":"'Kladné ohlasy, uznání komunitou'!C36","v":0}]
[{"$f":"'Kladné ohlasy, uznání komunitou'!A38","v":"Recenzní posudek článků ve vědeckých a odborných časopisech, grantových přihlášek v ostatních jazycích   (10 ZH)"},null,{"$f":"'Kladné ohlasy, uznání komunitou'!C41","v":0}]
[{"$f":"'Kladné ohlasy, uznání komunitou'!A43","v":"Doložená recenze příspěvku na mezinárodní konferenci   (10 ZH)"},null,{"$f":"'Kladné ohlasy, uznání komunitou'!C48","v":0}]
[{"$f":"'Kladné ohlasy, uznání komunitou'!A50","v":"Členství ve vědecké radě; v mezinárodní vědecké nebo odborné komisi; v mezinárodní redakční, technicko – správní nebo dozorčí radě;  (50 ZH)"},null,{"$f":"'Kladné ohlasy, uznání komunitou'!C53","v":0}]
[{"$f":"'Kladné ohlasy, uznání komunitou'!A55","v":"Členství v programovém výboru mezinárodní konference; v komisích pro habilitační a profesorská řízení; v komisi pro obhajobu DP v DSP mimo FAI; v komisi pro SDZ v DSP mimo FAI   (25 ZH)"},null,{"$f":"'Kladné ohlasy, uznání komunitou'!C58","v":0}]
[{"$f":"'Kladné ohlasy, uznání komunitou'!A60","v":"Členství v oborové radě DSP mimo FAI; v radě studijního Bc., Mgr. programu mimo FAI; v české nebo slovenské vědecké nebo odborné komisi, výboru; v české nebo slovenské redakční, technicko – správní nebo dozorčí radě;                 (25 ZH)"},null,{"$f":"'Kladné ohlasy, uznání komunitou'!C63","v":0}]
[{"$f":"'Kladné ohlasy, uznání komunitou'!A65","v":"Členství v komisi pro SZZ + BP mimo FAI; v komisi pro SZZ +DP mimo FAI              (15 ZH)"},null,{"$f":"'Kladné ohlasy, uznání komunitou'!C68","v":0}]
[]
[{"$f":"'Projekty - hlavní řešitel'!A1:E1","v":"5A. Hlavní řešitel projektů a ziskové činnosti FAI"},null,{"$f":"'Projekty - hlavní řešitel'!F48","v":0}]
[{"$f":"'Projekty - spoluřešitel'!A1:C1","v":"5B. Spoluřešitel projektů a ziskové činnosti FAI"},null,{"$f":"'Projekty - spoluřešitel'!C14","v":0}]
[]
[{"$f":"'Ostatní aktivity, třetí role'!A1:B1","v":"6. Třetí role univerzity, ostatní aktivity"},null,{"$f":"'Ostatní aktivity, třetí role'!B51","v":0}]
[]
["Celkový počet ZH za tvůrčí činnosti v roce 2018",null,{"$f":"C61+C59+C58+C43+C28+C17+C6","v":0}]
[]
[]
[]
["podpis zaměstnance","podpis ředitele ústavu"]

{"sheet":"Výsledky dle Metodiky ","index":1,"n_rows":57,"n_cols":4,"rows_kept":57,"cut":false,"hidden":false,"merged":[[34,0,34,1],[35,0,35,1],[38,0,38,1],[36,0,36,1],[30,0,30,1],[0,0,0,3],[13,0,13,2],[5,0,5,2],[25,0,25,2],[44,0,44,2],[19,0,19,2],[32,0,32,2],[41,0,41,1],[39,0,39,2],[27,0,27,1],[37,0,37,1],[42,0,42,1],[43,0,43,1],[28,0,28,1],[29,0,29,1],[31,0,31,1],[47,0,47,1],[48,0,48,1],[46,0,46,1],[56,0,56,2],[54,0,54,2],[49,0,49,2],[53,0,53,1],[51,0,51,1],[52,0,52,1]]}
["1. Výsledky tvůrčích činností dle Metodiky pro hodnocení výzkumu a vývoje"]
["Jimp - Články v impaktovaných časopisech  - časopis uvedený v databázi Web of Science (500 - 15250 ZH)","N - normované pořadí časopisu","mentální podíl    (v intervalu 0-1)","Počet ZH za danou aktivitu"]
["citace článku včetně mentálních podílů",null,null,{"$f":"(((1-B3)/(1+(B3/0.057)))*295+10)*50*C3","v":0}]
[null,null,null,{"$f":"(((1-B4)/(1+(B4/0.057)))*295+10)*50*C4","v":0}]
[null,null,null,{"$f":"(((1-B5)/(1+(B5/0.057)))*295+10)*50*C5","v":0}]
["Celkem ZH za impaktované časopisy",null,null,{"$f":"SUM(D3:D5)","v":0}]
[]
["Jsc - Články v časopisech uvedené v databázi SCOPUS            (500 - 15250 ZH)","N - normované pořadí časopisu","mentální podíl    (v intervalu 0-1)","Počet ZH za danou aktivitu"]
["citace článku včetně mentálních podílů",0,0,{"$f":"(((1-B9)/(1+(B9/0.057)))*295+10)*50*C9","v":0}]
[null,null,null,{"$f":"(((1-B10)/(1+(B10/0.057)))*295+10)*50*C10","v":0}]
[null,null,null,{"$f":"(((1-B11)/(1+(B11/0.057)))*295+10)*50*C11","v":0}]
[null,null,null,{"$f":"(((1-B12)/(1+(B12/0.057)))*295+10)*50*C12","v":0}]
[null,null,null,{"$f":"(((1-B13)/(1+(B13/0.057)))*295+10)*50*C13","v":0}]
["Celkem ZH za časopisy SCOPUS",null,null,{"$f":"SUM(D9:D13)","v":0}]
[]
["B Odborná kniha - světový jazyk\nC kapitola v odborné knize - světový jazyk    (400 ZH/AA)","počet AA","mentální podíl    (v intervalu 0-1)","Počet ZH za danou aktivitu"]
["citace knihy (kapitoly) včetně mentálních podílů",0,0,{"$f":"C17*B17*400","v":0}]
[null,null,null,{"$f":"C18*B18*400","v":0}]
[null,null,null,{"$f":"C19*B19*400","v":0}]
["Celkem ZH za odborné knihy - světový jazyk",null,null,{"$f":"SUM(D17:D19)","v":0}]
[]
["B Odborná kniha - ostatní jazyky\nC kapitola v odborné knize - ostatní jazyky     (200 ZH/ AA)","počet AA","mentální podíl    (v intervalu 0-1)","Počet ZH za danou aktivitu"]
["citace knihy (kapitoly) včetně mentálních podílů",0,0,{"$f":"C23*B23*200","v":0}]
[null,null,null,{"$f":"C24*B24*200","v":0}]
[null,null,null,{"$f":"C25*B25*200","v":0}]
["Celkem ZH za odborné knihy - světový jazyk",null,null,{"$f":"SUM(D23:D25)","v":0}]
[]
["D Článek ve sborníku - evidován v databázi SCOPUS a je mu přiřazena nenulová hodnota indexu SJR\n(500 ZH)",null,"mentální podíl    (v intervalu 0-1)","Počet ZH za danou aktivitu"]
["citace článku včetně mentálních podílů",null,null,{"$f":"C29*500","v":0}]
[null,null,0,{"$f":"C30*500","v":0}]
[null,null,null,{"$f":"C31*500","v":0}]
[null,null,null,{"$f":"C32*500","v":0}]
["Celkem ZH za články ve sborníku",null,null,{"$f":"SUM(D29:D32)","v":0}]
[]
["D Článek ve sborníku - evidován v databázi ISI Proceedings společnosti Thomson Reuters nebo v databázi SCOPUS bez přidělené hodnoty SJR indexu\n(400 ZH)",null,"mentální podíl    (v intervalu 0-1)","Počet ZH za danou aktivitu"]
["citace článku včetně mentálních podílů",null,null,{"$f":"C36*400","v":0}]
[null,null,null,{"$f":"C37*400","v":0}]
[null,null,null,{"$f":"C38*400","v":0}]
[null,null,null,{"$f":"C39*400","v":0}]
["Celkem ZH za články ve sborníku",null,null,{"$f":"SUM(D36:D39)","v":0}]
[]
["P Patent - evropský nebo mezinárodní patent (EPO), patent USA (USPTO) a Japonska (5000 ZH)",null,"mentální podíl    (v intervalu 0-1)","Počet ZH za danou aktivitu"]
["název patentu",null,null,{"$f":"C43*5000","v":0}]
[null,null,null,{"$f":"C44*5000","v":0}]
["Celkem ZH za patent evropský nebo mezinárodní",null,null,{"$f":"SUM(D43:D44)","v":0}]
[]
["P Patent - český nebo jiný národní patent, s výjimkou patentu USA a Japonska, který je využíván na základě platné licenční smlouvy (2500 ZH)",null,"mentální podíl    (v intervalu 0-1)","Počet ZH za danou aktivitu"]
["název patentu",null,0,{"$f":"C48*2500","v":0}]
[null,null,null,{"$f":"C49*2500","v":0}]
["Celkem ZH za patent český nebo jiný národní",null,null,{"$f":"SUM(D48:D49)","v":0}]
[]
["P Patent - ostaní: český nebo jiný národní patent udělený, doposud nevyužívaný nebo využívaný vlastníkem (500 ZH)",null,"mentální podíl    (v intervalu 0-1)","Počet ZH za danou aktivitu"]
["název patentu",null,0,{"$f":"C53*500","v":0}]
[null,null,null,{"$f":"C54*500","v":0}]
["Celkem ZH za patent - ostatní ",null,null,{"$f":"SUM(D53:D54)","v":0}]
[]
["Celkem ZH za výsledky tvůrčích činností dle Metodiky pro hodnocení výzkumu a vývoje",null,null,{"$f":"D55+D50+D45+D33+D26+D20+D14+D6+D40","v":0}]

{"sheet":"Výsledky nehodnocené metodikou","index":2,"n_rows":53,"n_cols":3,"rows_kept":53,"cut":false,"hidden":false,"merged":[[12,0,12,1],[18,0,18,1],[52,0,52,1],[50,0,50,1],[0,0,0,2],[24,0,24,1],[30,0,30,1],[35,0,35,1],[40,0,40,1],[45,0,45,1],[1,0,1,2],[6,0,6,1]]}
["2. Tvůrčí činnosti nehodnocené podle metodiky"]
["Ostatní publikační aktivity, poloprovoz, funkční vzorek, uplatněná metodika, software, užitný vzor"]
["Články ve vědeckých a odborných časopisech, které nejsou evidovány v databázi Web of Science ani SCOPUS – světový jazyk      (200 ZH)","mentální podíl    (v intervalu 0-1)","Počet ZH za danou aktivitu"]
["citace článku včetně mentálních podílů",0,{"$f":"B4*200","v":0}]
[null,null,{"$f":"B5*200","v":0}]
[null,null,{"$f":"B6*200","v":0}]
["Celkem ZH za ostatní články v časopisech (světový jazyk)",null,{"$f":"SUM(C4:C6)","v":0}]
[]
["Články ve vědeckých a odborných časopisech, které jsou evidovány v \"Seznamu recenzovaných neimpaktovaných časopisů (periodik) vydávaných v České republice\"      (100 ZH)","mentální podíl    (v intervalu 0-1)","Počet ZH za danou aktivitu"]
["citace článku včetně mentálních podílů",0,{"$f":"B10*100","v":0}]
[null,null,{"$f":"B11*100","v":0}]
[null,null,{"$f":"B12*100","v":0}]
["Celkem ZH za články v recenzovaných časopisech",null,{"$f":"SUM(C10:C12)","v":0}]
[]
["Články ve vědeckých a odborných časopisech, které nejsou evidovány v databázi Web of Science ani SCOPUS – ostatní jazyky      (50 ZH)","mentální podíl    (v intervalu 0-1)","Počet ZH za danou aktivitu"]
["citace článku včetně mentálních podílů",0,{"$f":"B16*50","v":0}]
[null,null,{"$f":"B17*50","v":0}]
[null,null,{"$f":"B18*50","v":0}]
["Celkem ZH za ostatní články v časopisech (ostatní jazyky)",null,{"$f":"SUM(C16:C18)","v":0}]
[]
["Článek ve sborníku mezinárodní konference – neuvedené v databázi Web of Science ani SCOPUS – světový jazyk    (150 ZH)","mentální podíl    (v intervalu 0-1)","Počet ZH za danou aktivitu"]
["citace článku včetně mentálních podílů",0,{"$f":"B22*150","v":0}]
[null,null,{"$f":"B23*150","v":0}]
[null,null,{"$f":"B24*150","v":0}]
["Celkem ZH za články ve sborníku ostatních konferencí - světový jazyk",null,{"$f":"SUM(C22:C24)","v":0}]
[]
["Článek ve sborníku mezinárodní konference – neuvedené v databázi Web of Science ani SCOPUS – ostatní jazyky    (30 ZH)","mentální podíl    (v intervalu 0-1)","Počet ZH za danou aktivitu"]
["citace článku včetně mentálních podílů",0,{"$f":"B28*30","v":0}]
[null,null,{"$f":"B29*30","v":0}]
[null,null,{"$f":"B30*30","v":0}]
["Celkem ZH za články ve sborníku ostatních konferencí - ostatní jazyky",null,{"$f":"SUM(C28:C30)","v":0}]
[]
["Přednášky na odborných akcích, které nejsou doloženy sborníkem, ale pouze programem   (15 ZH)","mentální podíl    (v intervalu 0-1)","Počet ZH za danou aktivitu"]
["název přednášky, název odborné akce, datum a místo konání",0,{"$f":"B34*15","v":0}]
[null,null,{"$f":"B35*15","v":0}]
["Celkem ZH za články ve sborníku ostatních konferencí - ostatní jazyky",null,{"$f":"SUM(C34:C35)","v":0}]
[]
["Poloprovoz, ověřená technologie (500 ZH)","mentální podíl    (v intervalu 0-1)","Počet ZH za danou aktivitu"]
["název",0,{"$f":"B39*500","v":0}]
[null,null,{"$f":"B40*500","v":0}]
["Celkem ZH za poloprovoz, ověřenou technologii",null,{"$f":"SUM(C39:C40)","v":0}]
[]
["Software, funkční vzorek, užitný vzor, certifikovaná metodika. Výsledky, které vznikly v rámci aplikovaného výzkumu.  (100 ZH)","mentální podíl    (v intervalu 0-1)","Počet ZH za danou aktivitu"]
["název",0,{"$f":"B44*100","v":0}]
[null,null,{"$f":"B45*100","v":0}]
["Celkem ZH za software a funkční vzorek",null,{"$f":"SUM(C44:C45)","v":0}]
[]
["Ostatní software, funkční vzorek, užitný vzor, certifikovaná metodika             (30 ZH)","mentální podíl    (v intervalu 0-1)","Počet ZH za danou aktivitu"]
["název",0,{"$f":"B49*30","v":0}]
[null,null,{"$f":"B50*50","v":0}]
["Celkem ZH za ostatní software, funkční vzorek",null,{"$f":"SUM(C49:C50)","v":0}]
[]
["Celkem ZH za ostatní tvůrčí aktivity nehodnocené metodikou",null,{"$f":"C51+C46+C41+C36+C31+C25+C19+C13+C7","v":0}]

{"sheet":"Kv. růst, pedag., organizace","index":3,"n_rows":62,"n_cols":4,"rows_kept":62,"cut":false,"hidden":false,"merged":[[14,0,14,1],[51,0,51,1],[39,0,39,2],[44,0,44,2],[1,0,1,3],[8,0,8,2],[19,0,19,2],[24,0,24,2],[23,0,23,1],[5,0,5,1],[11,0,11,1],[6,0,6,1],[21,0,21,1],[29,0,29,2],[34,0,34,2],[49,0,49,2],[28,0,28,1],[26,0,26,1],[56,0,56,1],[61,0,61,2],[37,0,37,1],[38,0,38,1],[41,0,41,1],[42,0,42,1],[47,0,47,1],[48,0,48,1],[59,0,59,2],[57,0,57,1],[58,0,58,1],[0,0,0,3],[53,0,53,1],[54,0,54,2],[43,0,43,1],[46,0,46,1],[27,0,27,1],[10,0,10,1],[33,0,33,1],[3,0,3,1],[2,0,2,1],[36,0,36,1],[22,0,22,1],[52,0,52,1],[7,0,7,1],[31,0,31,1],[32,0,32,1]]}
["3. Kvalifikační růst, pedagogická a organizační činnost"]
["Zvyšování kvalifikace, podpora pedagogické činnosti, výchova talentů, organizace akcí"]
["Bonifikace akademických pracovníkú studujících v 1.- 4. ročníku DSP, popřípadě v roce úspěšné obhajoby     (100 ZH)",null,"mentální podíl    (v intervalu 0-1)","Počet ZH za danou aktivitu"]
["název studijního programu, ročník (popřípadě datum obhajoby)",null,0,{"$f":"C4*100","v":0}]
[]
["Bonifikace školitele v roce úspěšného ukončení studia doktoranda studujícího na UTB     (100 ZH)",null,"mentální podíl    (v intervalu 0-1)","Počet ZH za danou aktivitu"]
["jméno doktoranda, datum obhajoby",null,0,{"$f":"C7*100","v":0}]
[null,null,null,{"$f":"C8*100","v":0}]
["Celkem ZH za bonifikaci školitele doktorandů",null,null,{"$f":"SUM(D7:D8)","v":0}]
[]
["Jmenování profesorem - v roce jmenování   (500 ZH)",null,"mentální podíl    (v intervalu 0-1)","Počet ZH za danou aktivitu"]
["datum obhajoby",null,0,{"$f":"C12*500","v":0}]
[]
["Jmenování docentem - v roce jmenování   (350 ZH)",null,"mentální podíl    (v intervalu 0-1)","Počet ZH za danou aktivitu"]
["datum obhajoby",null,0,{"$f":"C15*350","v":0}]
[]
["Studijní opora – text, elektronická verze uvedená v databázi opor FAI    (50 ZH/autorský arch)","počet AA","mentální podíl    (v intervalu 0-1)","Počet ZH za danou aktivitu"]
["název opory, název předmětu pro který je opora určena",0,0,{"$f":"B18*C18*50","v":0}]
[null,null,null,{"$f":"B19*C19*50","v":0}]
["Celkem ZH za textové studijní opory",null,null,{"$f":"SUM(D18:D19)","v":0}]
[]
["Studijní opora uvedená v databázi FAI - (prezentace, výukový software) \n(max 400 ZH/opora)",null,"obsahové pokrytí předmětu   \n(v intervalu 0-1)","Počet ZH za danou aktivitu"]
["název opory, název předmětu pro který je opora určena",null,0,{"$f":"C23*400","v":0}]
[null,null,null,{"$f":"C24*400","v":0}]
["Celkem ZH za studijní opory-software",null,null,{"$f":"SUM(D23:D24)","v":0}]
[]
[" Zavedení nového předmětu   (200 ZH)",null,"mentální podíl    (v intervalu 0-1)","Počet ZH za danou aktivitu"]
["název předmětu, název studijního oboru",null,0,{"$f":"C28*200","v":0}]
[null,null,null,{"$f":"C29*200","v":0}]
["Celkem ZH za zavedení nových předmětů",null,null,{"$f":"SUM(D28:D29)","v":0}]
[]
[" Vybudování laboratoře za podpory Rozvojových projektů UTB   (200 ZH)",null,"mentální podíl    (v intervalu 0-1)","Počet ZH za danou aktivitu"]
["název laboratoře, číslo místnosti umístění laboratoře",null,0,{"$f":"C33*200","v":0}]
[null,null,null,{"$f":"C34*200","v":0}]
["Celkem ZH za vybudování nových laboratoří",null,null,{"$f":"SUM(D33:D34)","v":0}]
[]
["Týdenní pedagogická činnost na zahraniční univerzitě v rámci projektů podporující mobility akademických pracovníků - Erasmus, Freemover…  (400 ZH)",null,"mentální podíl    (v intervalu 0-1)","Počet ZH za danou aktivitu"]
["název zahraniční univerzity, datum konání mobility",null,0,{"$f":"C38*400","v":0}]
[null,null,null,{"$f":"C39*400","v":0}]
["Celkem ZH za mobility",null,null,{"$f":"SUM(D38:D39)","v":0}]
[]
["Vedení studenta BSP a NMSP v soutěžích STOČ a umělecké činnosti \n(50 ZH / student)",null,"mentální podíl    (v intervalu 0-1)","Počet ZH za danou aktivitu"]
["jméno studenta",null,0,{"$f":"C43*50","v":0}]
[null,null,null,{"$f":"C44*50","v":0}]
["Celkem ZH za vedení studentů v soutěžích STOČ",null,null,{"$f":"SUM(D43:D44)","v":0}]
[]
["Vedení stážisty se závěrečnou prací      (20 ZH / stážista)",null,"mentální podíl    (v intervalu 0-1)","Počet ZH za danou aktivitu"]
["jméno stážisty",null,0,{"$f":"C48*20","v":0}]
[null,null,null,{"$f":"C49*20","v":0}]
["Celkem ZH za vedení stážistů",null,null,{"$f":"SUM(D48:D49)","v":0}]
[]
["Organizace a uspořádání kongresu, symposia, konference nebo workshopu      (max 400 ZH)",null,"mentální podíl    (v intervalu 0-1)","Počet ZH za danou aktivitu"]
["název akce, místo a datum konání",null,0,{"$f":"C53*400","v":0}]
[null,null,null,{"$f":"C54*400","v":0}]
["Celkem ZH za organizaci konferencí",null,null,{"$f":"SUM(D53:D54)","v":0}]
[]
["Organizace a uspořádání STOČ, olympiád, letních škol      (max 250 ZH)",null,"mentální podíl    (v intervalu 0-1)","Počet ZH za danou aktivitu"]
["název akce, místo a datum konání",null,null,{"$f":"C58*250","v":0}]
[null,null,null,{"$f":"C59*250","v":0}]
["Celkem ZH za organizaci STOČ",null,null,{"$f":"SUM(D58:D59)","v":0}]
[]
["Celkem ZH za kvalifikační růst, pedagogickou a organizační činnost",null,null,{"$f":"D60+D55+D50+D45+D40+D35+D30+D25+D20+D15+D12+D9+D4","v":0}]

{"sheet":"Kladné ohlasy, uznání komunitou","index":4,"n_rows":70,"n_cols":3,"rows_kept":70,"cut":false,"hidden":false,"merged":[[69,0,69,1],[0,0,0,2],[57,0,57,1],[1,0,1,2],[7,0,7,2],[52,0,52,1],[35,0,35,1],[47,0,47,1],[15,0,15,1],[25,0,25,1],[8,0,8,2],[2,0,2,2],[3,0,3,2],[4,0,4,1],[20,0,20,1],[30,0,30,1],[5,0,5,1],[62,0,62,1],[67,0,67,1],[9,0,9,1],[10,0,10,1],[40,0,40,1]]}
["4. Kladné ohlasy prací, uznání vědeckou komunitou"]
["Citace prací autory mimo UTB, významná ocenění, recenzní posudky, členství ve významných radách a komisích"]
["Citace díla autora v zahraničních časopisech a konferenčních příspěvcích dle databáze Web of Science a Scopus - publikace autorů mimo UTB           (20 ZH / citace)"]
["přiložit výpis publikací z roku 2017 a 2018, kde byl autor citován"]
["Celkový počet prací (autorů mimo UTB) s citací autora"]
["Celkem ZH za citace díla autora ",null,{"$f":"C5*20","v":0}]
[]
["Citace díla autora v zahraničních časopisech a konferenčních příspěvcích dle databáze Web of Science a Scopus - publikace autorů z UTB         (10 ZH / citace)"]
["přiložit výpis publikací z roku 2017 a 2018, kde byl autor citován"]
["Celkový počet prací (autorů z UTB) s citací autora"]
["Celkem ZH za citace díla autora ",null,{"$f":"C10*10","v":0}]
[]
["Získaná významná ocenění v zahraničí     (450 ZH)","mentální podíl    (v intervalu 0-1)","Počet ZH za danou aktivitu"]
[null,0,{"$f":"B14*450","v":0}]
[null,null,{"$f":"B15*450","v":0}]
["Celkem ZH za významná ocenění v zahraničí",null,{"$f":"SUM(C14:C15)","v":0}]
[]
["Získaná významná ocenění v tuzemsku     (200 ZH)","mentální podíl    (v intervalu 0-1)","Počet ZH za danou aktivitu"]
[null,0,{"$f":"B19*200","v":0}]
[null,null,{"$f":"B20*200","v":0}]
["Celkem ZH za významná ocenění v tuzemsku",null,{"$f":"SUM(C19:C20)","v":0}]
[]
["Oponentní posudek disertačních prací, habilitačních prací, monografií ve světovém jazyce    (50 ZH)","mentální podíl    (v intervalu 0-1)","Počet ZH za danou aktivitu"]
["název oponované práce (monografie)",0,{"$f":"B24*50","v":0}]
[null,null,{"$f":"B25*50","v":0}]
["Celkem ZH za oponentní posudky monografií - světový jazyk",null,{"$f":"SUM(C24:C25)","v":0}]
[]
["Oponentní posudek disertačních prací, habilitačních prací, monografií v ostatních jazycích    (25 ZH)","mentální podíl    (v intervalu 0-1)","Počet ZH za danou aktivitu"]
["název oponované práce (monografie)",0,{"$f":"B29*25","v":0}]
[null,null,{"$f":"B30*25","v":0}]
["Celkem ZH za oponentní posudky monografií - ostatní jazyky",null,{"$f":"SUM(C29:C30)","v":0}]
[]
["Recenzní posudek článků ve vědeckých a odborných časopisech, grantových přihlášek ve světovém jazyce   (25 ZH)","mentální podíl    (v intervalu 0-1)","Počet ZH za danou aktivitu"]
[null,0,{"$f":"B34*25","v":0}]
[null,null,{"$f":"B35*25","v":0}]
["Celkem ZH za recenzní posudky článků - světový jazyk",null,{"$f":"SUM(C34:C35)","v":0}]
[]
["Recenzní posudek článků ve vědeckých a odborných časopisech, grantových přihlášek v ostatních jazycích   (10 ZH)","mentální podíl    (v intervalu 0-1)","Počet ZH za danou aktivitu"]
["název oponovaného článku, název časopisu (poskytovatele grantu)",0,{"$f":"B39*10","v":0}]
[null,null,{"$f":"B40*10","v":0}]
["Celkem ZH za recenzní posudky článků - ostatní jazyky",null,{"$f":"SUM(C39:C40)","v":0}]
[]
["Doložená recenze příspěvku na mezinárodní konferenci   (10 ZH)","mentální podíl    (v intervalu 0-1)","Počet ZH za danou aktivitu"]
[null,null,{"$f":"B44*10","v":0}]
[null,null,{"$f":"B45*10","v":0}]
[null,null,{"$f":"B46*10","v":0}]
[null,null,{"$f":"B47*10","v":0}]
["Celkem ZH za recenzi příspěvku na mezinárodní konferenci",null,{"$f":"SUM(C44:C47)","v":0}]
[]
["Členství ve vědecké radě; v mezinárodní vědecké nebo odborné komisi; v mezinárodní redakční, technicko – správní nebo dozorčí radě;  (50 ZH)","v případě členství uveďte hodnotu 1 ","Počet ZH za danou aktivitu"]
[null,null,{"$f":"B51*50","v":0}]
[null,null,{"$f":"B52*50","v":0}]
["Celkem ZH za členství ve vědeckých radách",null,{"$f":"SUM(C51:C52)","v":0}]
[]
["Členství v programovém výboru mezinárodní konference; v komisích pro habilitační a profesorská řízení; v komisi pro obhajobu DP v DSP mimo FAI; v komisi pro SDZ v DSP mimo FAI   (25 ZH)","v případě členství uveďte hodnotu 1 ","Počet ZH za danou aktivitu"]
["název konference, datum a místo konání; \nnázev komise, datum konání",0,{"$f":"B56*25","v":0}]
[null,null,{"$f":"B57*25","v":0}]
["Celkem ZH za členství v mezinárodních odborných komisích",null,{"$f":"SUM(C56:C57)","v":0}]
[]
["Členství v oborové radě DSP mimo FAI; v radě studijního Bc., Mgr. programu mimo FAI; v české nebo slovenské vědecké nebo odborné komisi, výboru; v české nebo slovenské redakční, technicko – správní nebo dozorčí radě;                 (25 ZH)","v případě členství uveďte hodnotu 1 ","Počet ZH za danou aktivitu"]
["název rady (komise)",0,{"$f":"B61*25","v":0}]
[null,null,{"$f":"B62*25","v":0}]
["Celkem ZH za členství v programovém výboru mezinárodní konference",null,{"$f":"SUM(C61:C62)","v":0}]
[]
["Členství v komisi pro SZZ + BP mimo FAI; v komisi pro SZZ +DP mimo FAI              (15 ZH)","v případě členství uveďte hodnotu 1 ","Počet ZH za danou aktivitu"]
["název komise (rady)",0,{"$f":"B66*15","v":0}]
[null,null,{"$f":"B67*15","v":0}]
["Celkem ZH za členství v národních odborných komisích",null,{"$f":"SUM(C66:C67)","v":0}]
[]
["Celkem ZH za kladné ohlasy prací, uznání vědeckou komunitou",null,{"$f":"C68+C63+C58+C53+C48+C41+C36+C26+C31+C21+C16+C11+C6","v":0}]

{"sheet":"Projekty - hlavní řešitel","index":5,"n_rows":48,"n_cols":7,"rows_kept":48,"cut":false,"hidden":false,"merged":[[36,0,42,0],[47,0,47,2],[43,2,43,3],[44,0,44,2],[0,0,0,5],[24,0,24,1],[25,0,25,1],[25,2,25,4],[26,0,26,1],[26,2,26,4],[14,0,20,0],[22,0,22,2],[21,2,21,3],[1,0,1,1],[2,0,2,1],[6,0,8,1],[3,0,3,1],[3,2,3,4],[27,0,27,1],[27,2,27,4],[28,0,30,1],[4,0,4,1],[5,0,5,1],[4,2,4,4],[5,2,5,4]]}
["5A. Hlavní řešitel projektů a ziskové činnosti FAI"]
[]
["Projekt číslo 1"]
["Název projektu (ziskové činnosti):"]
["Číslo projektu:"]
["Poskytovatel:"]
["Finanční prostředky projektu",null,"Celkové uznané náklady na projekt pro rok 2018 (v tis. Kč)                      ","Fp  =",0]
[null,null,"Celkové mzdové náklady včetně pojištění (v tis. Kč)                                 ","Fm = ",0]
[null,null,"Investiční náklady přesahující částku 100 tisíc Kč (v tis. Kč)                    ","Fi  =",0]
[null,null,"Koeficient projektu (podle typu projektu)                                                  ","K  =",0.7]
[null,null,"Efektivnost projektu                                                                            ","  Fe  =",{"$f":"E7-E8-E9","v":0}]
[null,null,"Celkový počet započitatelných hodin (bodú) pro projekt                                    ","  H  =",{"$f":"2600*E11*E10/(200+E11)","v":0}]
[]
[null,null,"Jméno, příjmení","mentální podíl    (v intervalu 0-1)","Počet ZH za danou aktivitu"]
["Personální zabezpečení projektu","Hlavní řešitel",null,0.6,{"$f":"D15*E12","v":0}]
[null,"Spoluřešitel",null,null,{"$f":"D16*E12","v":0}]
[null,"Spoluřešitel",null,null,{"$f":"D17*E12","v":0},null,"                  "]
[null,"Spoluřešitel",null,null,{"$f":"D18*E12","v":0}]
[null,"Spoluřešitel",null,null,{"$f":"D19*E12","v":0}]
[null,"Spoluřešitel",null,null,{"$f":"D20*E12","v":0}]
[null,"Spoluřešitel",null,null,{"$f":"D21*E12","v":0}]
[null,null,"Kontrolní suma",null,{"$f":"SUM(E15:E21)","v":0}]
["Podíl hlavního řešitele na projektu nebo ziskové činnosti:",null,null,{"$f":"D15","v":0.6},null,{"$f":"E15","v":0}]
[]
["Projekt číslo 2"]
["Název projektu (ziskové činnosti):"]
["Číslo projektu:"]
["Poskytovatel:"]
["Finanční prostředky projektu",null,"Celkové uznané náklady na projekt pro rok 2018 (v tis. Kč)                      ","Fp  =",0]
[null,null,"Celkové mzdové náklady včetně pojištění (v tis. Kč)                                 ","Fm = ",0]
[null,null,"Investiční náklady přesahující částku 100 tisíc Kč (v tis. Kč)                    ","Fi  =",0]
[null,null,"Koeficient projektu (podle typu projektu)                                                  ","K  =",0.7]
[null,null,"Efektivnost projektu                                                                            ","  Fe  =",{"$f":"E29-E30-E31","v":0}]
[null,null,"Celkový počet započitatelných hodin (bodú) pro projekt                                    ","  H  =",{"$f":"2600*E33*E32/(200+E33)","v":0}]
[]
[null,null,"Jméno, příjmení","mentální podíl    (v intervalu 0-1)","Počet ZH za danou aktivitu"]
["Personální zabezpečení projektu","Hlavní řešitel",null,0.6,{"$f":"D37*E34","v":0}]
[null,"Spoluřešitel",null,null,{"$f":"D38*E34","v":0}]
[null,"Spoluřešitel",null,null,{"$f":"D39*E34","v":0},null,"                  "]
[null,"Spoluřešitel",null,null,{"$f":"D40*E34","v":0}]
[null,"Spoluřešitel",null,null,{"$f":"D41*E34","v":0}]
[null,"Spoluřešitel",null,null,{"$f":"D42*E34","v":0}]
[null,"Spoluřešitel",null,null,{"$f":"D43*E34","v":0}]
[null,null,"Kontrolní suma",null,{"$f":"SUM(E37:E43)","v":0}]
["Podíl hlavního řešitele na projektu nebo ziskové činnosti:",null,null,{"$f":"D37","v":0.6},null,{"$f":"E37","v":0}]
[]
[]
["Celkem ZH za projekty a ziskovou činnost - hlavní řešitel",null,null,null,null,{"$f":"SUM(F4:F47)","v":0}]

{"sheet":"Projekty - spoluřešitel","index":6,"n_rows":14,"n_cols":3,"rows_kept":14,"cut":false,"hidden":false,"merged":[[13,0,13,1],[2,0,2,1],[3,2,5,2],[0,0,0,2],[6,2,8,2],[9,2,11,2]]}
["5B. Spoluřešitel projektů a ziskové činnosti FAI"]
[]
["Identifikace projektů (ziskové činnosti)",null,"Počet ZH za danou aktivitu přidělené hlavním řešitelem"]
["Název projektu (ziskové činnosti):",null,0]
["Číslo projektu:"]
["Poskytovatel:"]
["Název projektu (ziskové činnosti):",null,0]
["Číslo projektu:"]
["Poskytovatel:"]
["Název projektu (ziskové činnosti):",null,0]
["Číslo projektu:"]
["Poskytovatel:"]
[]
["Celkem ZH za projekty a ziskovou činnost - spoluřešitel",null,{"$f":"SUM(C4:C12)","v":0}]

{"sheet":"Ostatní aktivity, třetí role","index":7,"n_rows":51,"n_cols":2,"rows_kept":51,"cut":false,"hidden":false,"merged":[[0,0,0,1],[1,0,1,1]]}
["6. Třetí role univerzity, ostatní aktivity"]
["Další pedagogické, tvůrčí, výzkumné, vědecké a inovační aktivity nehodnocené v předchozích kategoriích"]
["Přednášky pro posluchače U3V (uveďte název, termín, počet hodin)","Počet ZH za danou aktivitu"]
[]
[]
[]
["Přednášky pro posluchače CŽV (uveďte název, termín, počet hodin)","Počet ZH za danou aktivitu"]
[]
[]
[]
["Akce pro MŠ, ZŠ, SŠ (název akce, počet hodin)","Počet ZH za danou aktivitu"]
[]
[]
[]
["Akce typu „Junior univerzita“ (název, počet dnů)","Počet ZH za danou aktivitu"]
[]
[]
[]
["Další odborné přednášky/kurzy/workshopy pro veřejnost (název, počet hodin)","Počet ZH za danou aktivitu"]
[]
[]
[]
["Dobrovolnická a charitativní činnost (název akce)","Počet ZH za danou aktivitu"]
[]
[]
[]
["Ostatní spolupráce s praxí (popis spolupráce (akce))","Počet ZH za danou aktivitu"]
[]
[]
[]
["Členství v dalších národních a regionálních odborných sdruženích","Počet ZH za danou aktivitu"]
[]
[]
[]
["Členství v dalších odborných společnostech, orgánech externích organizací","Počet ZH za danou aktivitu"]
[]
[]
[]
["Propagační akce (akce v akademickém roce 2018/19, výjezdy na SŠ apod.)","Počet ZH za danou aktivitu"]
[]
[]
[]
[" Další aktivita (nezahrnutá v předchozím)","Počet ZH za danou aktivitu"]
[]
[]
[]
[]
[]
[]
[]
["Celkem ZH za ostatní aktivity"]

{"sheet":"List1","index":8,"n_rows":0,"n_cols":0,"rows_kept":0,"cut":false,"hidden":false,"merged":[]}